{"text_format":"1","workbook":"xlsx","n_sheets":1,"sheets":["Hoja1"],"not_rendered":{"charts":0,"images":0,"macros":1,"external_links":0,"defined_names":0,"comments":0,"pivot_tables":0},"unopened":[],"bounds":{"document_bytes":16777216,"sheet_cells":100000,"rows_first":2000,"rows_last":500,"rows_between":2000,"halvings":0,"cell_chars":16384,"cell_head_chars":4096},"cells_cut":0,"cells_raw":0,"read":"whole","date_system":"1900"}

{"sheet":"Hoja1","index":0,"n_rows":29,"n_cols":18,"rows_kept":29,"cut":false,"hidden":false,"merged":[[0,14,0,17],[1,17,2,17],[1,16,2,16],[2,9,2,10],[1,7,1,8],[1,9,1,10],[0,1,0,12],[1,11,1,12],[2,11,2,12],[1,3,1,4],[2,3,2,4],[2,5,2,6],[1,5,1,6],[2,7,2,8],[1,1,2,2],[1,14,2,15]]}
[null,"CONCIENCIA E EXPRESIÓNS CULTURAIS - 1º PRIMARIA",null,null,null,null,null,null,null,null,null,null,null,null,"CONCIENCIA E EXPRES. CULTURAIS- 1º PRIMARIA"]
[null,"1º A",null,"E. FÍSICA",null,"E. MUSICAL",null,"ED. PLÁSTICA",null,"L. CASTELÁ",null,"L. GALEGA",null,null,"1º A",null,"NOTA MEDIA","CUALIFICACIÓN"]
[null,null,null,"1º-EFB4.1.1 - Representa personaxes e situacións, mediante o corpo e o movemento con desinhibición e espontaneidade.",null,"1º-EMB3.2.3 - Identifica e utiliza o corpo como instrumento para a expresión de sentimentos e emocións.",null,"1º-EPB2.1.3 - Usa diferentes tipos de materiais e experimenta con eles para crear a posteriori obras plásticas.",null,"1º-LCB.1.7.1 - Canta cancións, conta e recita pequenos contos e poemas.",null,"1º-LGB5.1.1 - Recrea e reescribe de xeito moi sinxelo diversos textos literarios: breves contos, poemas, refráns, adiviñas, trabalinguas, cantigas e xogos de sorte; usando modelos."]
[null,null,"ALUMNO /A","Nota",0.15,"Nota",0.15,"Nota",0.25,null,0.25,"Nota",0.2,null,null,"ALUMNO /A",1]
[null,1,null,null,{"$f":"D5*0.15","v":0},null,{"$f":"F5*0.15","v":0},null,{"$f":"H5*0.25","v":0},null,{"$f":"J5*0.25","v":0},null,{"$f":"L5*0.2","v":0},null,1,null,{"$f":"SUM(M5,K5,I5,G5,E5,)","v":0},{"$f":"IF(Q5<5,\"INSUFICIENTE\",IF(Q5<6,\"SUFICIENTE\",IF(Q5<7,\"BIEN\",IF(Q5<9,\"NOTABLE\",\"SOBRESALIENTE\"))))","v":"INSUFICIENTE"}]
[null,2,null,null,{"$f":"D6*0.15","v":0},null,{"$f":"F6*0.15","v":0},null,{"$f":"H6*0.25","v":0},null,{"$f":"J6*0.25","v":0},null,{"$f":"L6*0.2","v":0},null,2,null,{"$f":"SUM(M6,K6,I6,G6,E6,)","v":0},{"$f":"IF(Q6<5,\"INSUFICIENTE\",IF(Q6<6,\"SUFICIENTE\",IF(Q6<7,\"BIEN\",IF(Q6<9,\"NOTABLE\",\"SOBRESALIENTE\"))))","v":"INSUFICIENTE"}]
[null,3,null,null,0,null,0,null,0,null,0,null,0,null,3,null,0,"INSUFICIENTE"]
[null,4,null,null,0,null,0,null,0,null,0,null,0,null,4,null,0,"INSUFICIENTE"]
[null,5,null,null,0,null,0,null,0,null,0,null,0,null,5,null,0,"INSUFICIENTE"]
[null,{"$f":"B9+1","v":6},null,null,0,null,0,null,0,null,0,null,0,null,{"$f":"O9+1","v":6},null,0,"INSUFICIENTE"]
[null,{"$f":"B10+1","v":7},null,null,0,null,0,null,0,null,0,null,0,null,{"$f":"O10+1","v":7},null,0,"INSUFICIENTE"]
[null,8,null,null,0,null,0,null,0,null,0,null,0,null,8,null,0,"INSUFICIENTE"]
[null,9,null,null,0,null,0,null,0,null,0,null,0,null,9,null,0,"INSUFICIENTE"]
[null,10,null,null,0,null,0,null,0,null,0,null,0,null,10,null,0,"INSUFICIENTE"]
[null,11,null,null,0,null,0,null,0,null,0,null,0,null,11,null,0,"INSUFICIENTE"]
[null,12,null,null,0,null,0,null,0,null,0,null,0,null,12,null,0,"INSUFICIENTE"]
[null,13,null,null,0,null,0,null,0,null,0,null,0,null,13,null,0,"INSUFICIENTE"]
[null,14,null,null,0,null,0,null,0,null,0,null,0,null,14,null,0,"INSUFICIENTE"]
[null,15,null,null,0,null,0,null,0,null,0,null,0,null,15,null,0,"INSUFICIENTE"]
[null,16,null,null,0,null,0,null,0,null,0,null,0,null,16,null,0,"INSUFICIENTE"]
[null,17,null,null,0,null,0,null,0,null,0,null,0,null,17,null,0,"INSUFICIENTE"]
[null,18,null,null,0,null,0,null,0,null,0,null,0,null,18,null,0,"INSUFICIENTE"]
[null,19,null,null,0,null,0,null,0,null,0,null,0,null,19,null,0,"INSUFICIENTE"]
[null,20,null,null,0,null,0,null,0,null,0,null,0,null,20,null,0,"INSUFICIENTE"]
[null,21,null,null,0,null,0,null,0,null,0,null,0,null,21,null,0,"INSUFICIENTE"]
[null,22,null,null,0,null,0,null,0,null,0,null,0,null,22,null,0,"INSUFICIENTE"]
[null,23,null,null,0,null,0,null,0,null,0,null,0,null,23,null,0,"INSUFICIENTE"]
[null,24,null,null,0,null,0,null,0,null,0,null,0,null,24,null,0,"INSUFICIENTE"]
[null,25,null,null,0,null,0,null,0,null,0,null,0,null,25,null,0,"INSUFICIENTE"]